[Event "FRA-chTW Top 12 2019"]
[Site "Vandoeuvre"]
[Date "2019.05.02"]
[Round "1.2"]
[White "Safranska, Anda"]
[Black "Skripchenko, Almira"]
[Result "0-1"]
[ECO "A04"]
[WhiteElo "2188"]
[BlackElo "2406"]
[Annotator "NA"]
[PlyCount "86"]
[EventDate "2019.05.02"]
[EventType "team-tourn"]
[EventCountry "FRA"]
[SourceTitle "playchess.com"]
[Source "ChessBase"]
[SourceQuality "1"]
[TimeControl "40/5400+30:1800+30"]

1. Nf3 {[%emt 0:00:00]} c5 {[%emt 0:00:16]} 2. g3 {[%emt 0:00:00]} Nc6 {[%emt 0:00:11]} 3. Bg2 {[%emt 0:00:00]} g6 {[%emt 0:02:19]} 4. e4 {[%emt 0:00:20]} Bg7 {[%emt 0:01:35]} 5. O-O {[%emt 0:00:07]} e5 {[%emt 0:01:38]} 6. d3 {[%emt 0:00:27]} Nge7 {[%emt 0:00:20]} 7. c3 {[%emt 0:00:17]} O-O {[%emt 0:01:26]} 8. a3 {[%emt 0:00:06]} d6 {[%emt 0:02:06]} 9. b4 {[%emt 0:00:12]} h6 {[%emt 0:01:31]} 10. Nbd2 {[%emt 0:00:11]} Be6 {[%emt 0:01:52]} 11. Re1 {[%emt 0:00:57]} b6 {[%emt 0:08:38]} 12. Nb3 {[%emt 0:00:54]} Qd7 {[%emt 0:05:39]} 13. Bb2 {[%emt 0:11:43]} Rac8 {[%emt 0:09:33]} 14. Rb1 {[%emt 0:05:50]} f5 {[%emt 0:04:55]} 15. exf5 {[%emt 0:00:10]} gxf5 {[%emt 0:10:09]} 16. b5 {[%emt 0:14:12]} Nd8 {[%emt 0:01:18]} 17. c4 {[%emt 0:00:21]} Nf7 {[%emt 0:01:48]} 18. Nbd2 {[%emt 0:00:20]} Ng6 {[%emt 0:04:59]} 19. h4 {[%emt 0:18:48]} Rfe8 {[%emt 0:13:19]} 20. Qc2 {[%emt 0:01:56]} Qc7 {[%emt 0:02:27]} 21. Nf1 {[%emt 0:00:30]} Qd7 {[%emt 0:00:30]} 22. a4 {[%emt 0:00:30]} h5 {[%emt 0:00:30]} 23. Ne3 {[%emt 0:00:30]} Ne7 {[%emt 0:00:30]} 24. Nf1 {[%emt 0:00:30]} Rf8 {[%emt 0:00:30]} 25. Rbd1 {[%emt 0:00:30]} Ng6 {[%emt 0:00:30]} 26. Ne3 {[%emt 0:00:30]} f4 {[%emt 0:00:30]} 27. Nd5 {[%emt 0:00:30]} Bg4 {[%emt 0:00:30]} 28. Rb1 {[%emt 0:00:30]} Ne7 {[%emt 0:00:30]} 29. Nxe7+ {[%emt 0:00:30]} Qxe7 {[%emt 0:00:30]} 30. Nd2 {[%emt 0:00:30]} Nh6 {[%emt 0:00:30]} 31. Bd5+ {[%emt 0:00:30]} Kh8 {[%emt 0:00:30]} 32. Ne4 {[%emt 0:00:30]} Nf5 {[%emt 0:00:30]} 33. Ng5 {[%emt 0:00:30]} Nd4 {[%emt 0:00:30]} 34. Bxd4 {[%emt 0:00:30]} cxd4 {[%emt 0:00:30]} 35. Kg2 {[%emt 0:00:30]} Bh6 {[%emt 0:00:30]} 36. Nf3 {[%emt 0:43:39]} Qg7 {[%emt 0:22:34]} 37. Nh2 fxg3 {[%emt 0:00:30]} 38. fxg3 {[%emt 0:00:00]} Bf4 {[%emt 0:00:30]} 39. Nf1 {[%emt 0:00:00]} Rf6 {[%emt 0:00:30]} 40. Kh1 {[%emt 0:00:00]} Bh6 {[%emt 0:00:30]} 41. Qg2 {[%emt 0:29:54]} Rcf8 {[%emt 0:30:22]} 42. Rb2 {[%emt 0:00:30]} Qd7 {[%emt 0:00:57]} 43. Qg1 {[%emt 0:02:17]} Qf5 {[%emt 0:00:56]} 0-1

[Event "FRA-chTW Top 12 2019"]
[Site "Vandoeuvre"]
[Date "2019.05.02"]
[Round "1.3"]
[White "Richard, Emma"]
[Black "Maisuradze, Nino"]
[Result "0-1"]
[ECO "B32"]
[WhiteElo "2120"]
[BlackElo "2179"]
[Annotator "NA"]
[PlyCount "60"]
[EventDate "2019.05.02"]
[EventType "team-tourn"]
[EventCountry "FRA"]
[SourceTitle "playchess.com"]
[Source "ChessBase"]
[SourceQuality "1"]
[TimeControl "40/5400+30:1800+30"]

1. e4 {[%emt 0:00:00]} c5 {[%emt 0:00:00]} 2. Nf3 {[%emt 0:00:00]} Nc6 {[%emt 0:00:00]} 3. d4 {[%emt 0:00:00]} cxd4 {[%emt 0:00:00]} 4. Nxd4 {[%emt 0:00:00]} e5 {[%emt 0:00:13]} 5. Nb5 {[%emt 0:00:00]} d6 {[%emt 0:00:04]} 6. N1c3 {[%emt 0:00:07]} a6 {[%emt 0:00:25]} 7. Na3 {[%emt 0:00:06]} Be6 {[%emt 0:02:30]} 8. Be2 {[%emt 0:07:18]} Nf6 {[%emt 0:09:59]} 9. Bg5 {[%emt 0:04:49]} Nd4 {[%emt 0:04:40]} 10. O-O {[%emt 0:05:40]} Be7 {[%emt 0:09:07]} 11. Bxf6 {[%emt 0:04:49]} Bxf6 {[%emt 0:04:00]} 12. Nc4 {[%emt 0:13:35]} O-O {[%emt 0:08:27]} 13. Ne3 {[%emt 0:03:42]} Rc8 {[%emt 0:02:32]} 14. Bd3 {[%emt 0:01:16]} Bg5 {[%emt 0:02:46]} 15. Ncd5 {[%emt 0:03:11]} Kh8 {[%emt 0:24:34]} 16. c3 {[%emt 0:08:42]} Nc6 {[%emt 0:00:06]} 17. Qe2 {[%emt 0:13:52]} Bh6 {[%emt 0:01:15]} 18. Rfd1 {[%emt 0:01:35]} Qg5 {[%emt 0:01:38]} 19. Nb6 {[%emt 0:04:23]} Rcd8 {[%emt 0:00:38]} 20. Bc4 {[%emt 0:01:08]} Ne7 {[%emt 0:06:29]} 21. g3 {[%emt 0:10:08]} Ng6 {[%emt 0:00:36]} 22. Kh1 {[%emt 0:08:00]} Bh3 {[%emt 0:02:04]} 23. Nbd5 {[%emt 0:02:45]} f5 {[%emt 0:03:38]} 24. exf5 {[%emt 0:03:07]} Bxf5 {[%emt 0:00:25]} 25. Nxf5 {[%emt 0:00:12]} Qxf5 {[%emt 0:00:21]} 26. Kg1 {[%emt 0:00:13]} e4 {[%emt 0:04:45]} 27. g4 {[%emt 0:01:54]} Qe5 {[%emt 0:03:25]} 28. Rd4 {[%emt 0:01:28]} Nh4 {[%emt 0:03:29]} 29. Qxe4 {[%emt 0:00:55]} Nf3+ {[%emt 0:00:19]} 30. Kf1 {[%emt 0:00:04]} Nd2+ {[%emt 0:00:57]} 0-1

[Event "FRA-chTW Top 12 2019"]
[Site "Vandoeuvre"]
[Date "2019.05.02"]
[Round "1.3"]
[White "Flear, Christine"]
[Black "Franc, Nathalie"]
[Result "1-0"]
[ECO "E46"]
[WhiteElo "2037"]
[BlackElo "2004"]
[Annotator "NA"]
[PlyCount "57"]
[EventDate "2019.05.02"]
[EventType "team-tourn"]
[EventCountry "FRA"]
[SourceTitle "playchess.com"]
[Source "ChessBase"]
[SourceQuality "1"]
[TimeControl "40/5400+30:1800+30"]

1. d4 {[%emt 0:00:00]} Nf6 {[%emt 0:00:00]} 2. c4 {[%emt 0:00:04]} e6 {[%emt 0:00:04]} 3. Nc3 {[%emt 0:00:26]} Bb4 {[%emt 0:00:36]} 4. e3 {[%emt 0:00:30]} O-O {[%emt 0:02:45]} 5. Nge2 {[%emt 0:00:45]} Re8 {[%emt 0:01:28]} 6. a3 {[%emt 0:02:31]} Bxc3+ {[%emt 0:00:11]} 7. Nxc3 {[%emt 0:00:16]} d6 {[%emt 0:02:25]} 8. Be2 {[%emt 0:04:31]} Nbd7 {[%emt 0:06:37]} 9. O-O {[%emt 0:05:36]} e5 {[%emt 0:03:57]} 10. b4 {[%emt 0:02:25]} Nf8 {[%emt 0:16:44]} 11. dxe5 {[%emt 0:11:48]} Rxe5 {[%emt 0:13:01]} 12. f4 {[%emt 0:04:23]} Re8 {[%emt 0:02:45]} 13. Bf3 {[%emt 0:01:17]} Ng6 {[%emt 0:02:07]} 14. g3 {[%emt 0:04:56]} Rb8 {[%emt 0:07:22]} 15. Qd4 {[%emt 0:10:22]} Bh3 {[%emt 0:13:36]} 16. Re1 {[%emt 0:04:57]} a6 {[%emt 0:04:31]} 17. Bb2 {[%emt 0:01:42]} c5 {[%emt 0:09:03]} 18. Qd3 {[%emt 0:08:24]} cxb4 {[%emt 0:02:11]} 19. axb4 {[%emt 0:00:03]} Qb6 {[%emt 0:00:45]} 20. Na4 {[%emt 0:01:07]} Qc7 {[%emt 0:02:48]} 21. Bxf6 {[%emt 0:11:14]} gxf6 {[%emt 0:00:06]} 22. Nc3 {[%emt 0:05:46]} Ne7 {[%emt 0:04:15]} 23. Ne4 {[%emt 0:03:57]} Kg7 {[%emt 0:00:14]} 24. Qd4 {[%emt 0:02:16]} Ng8 {[%emt 0:00:30]} 25. Nxd6 {[%emt 0:01:56]} Red8 {[%emt 0:00:38]} 26. c5 {[%emt 0:00:19]} Qd7 {[%emt 0:02:41]} 27. e4 {[%emt 0:02:42]} Kf8 {[%emt 0:01:05]} 28. e5 {[%emt 0:01:41]} fxe5 {[%emt 0:00:09]} 29. Qxe5 {[%emt 0:00:37]} 1-0

[Event "FRA-chTW Top 12 2019"]
[Site "Vandoeuvre"]
[Date "2019.05.02"]
[Round "1.4"]
[White "Fischer, Julie"]
[Black "Neuhauser, Salome"]
[Result "1-0"]
[ECO "B31"]
[WhiteElo "2046"]
[BlackElo "2073"]
[Annotator "NA"]
[PlyCount "67"]
[EventDate "2019.05.02"]
[EventType "team-tourn"]
[EventCountry "FRA"]
[SourceTitle "playchess.com"]
[Source "ChessBase"]
[SourceQuality "1"]
[TimeControl "40/5400+30:1800+30"]

1. e4 {[%emt 0:00:00]} c5 {[%emt 0:00:00]} 2. Nf3 {[%emt 0:00:00]} Nc6 {[%emt 0:00:00]} 3. Bb5 {[%emt 0:00:00]} g6 {[%emt 0:00:00]} 4. Bxc6 {[%emt 0:00:15]} dxc6 {[%emt 0:00:11]} 5. d3 {[%emt 0:00:34]} Bg7 {[%emt 0:00:07]} 6. h3 {[%emt 0:00:54]} e5 {[%emt 0:02:35]} 7. Be3 {[%emt 0:01:45]} Qe7 {[%emt 0:00:35]} 8. Qd2 {[%emt 0:09:30]} Nf6 {[%emt 0:00:22]} 9. Bg5 {[%emt 0:06:33]} Qc7 {[%emt 0:03:51]} 10. Bh6 {[%emt 0:08:30]} O-O {[%emt 0:01:05]} 11. Nc3 {[%emt 0:07:21]} Rd8 {[%emt 0:05:13]} 12. Bxg7 {[%emt 0:06:04]} Kxg7 {[%emt 0:00:06]} 13. Qg5 {[%emt 0:00:09]} Nd7 {[%emt 0:03:51]} 14. h4 {[%emt 0:12:24]} f6 {[%emt 0:02:31]} 15. Qe3 {[%emt 0:00:05]} h6 {[%emt 0:02:32]} 16. g4 {[%emt 0:01:44]} Rh8 {[%emt 0:12:39]} 17. O-O-O {[%emt 0:00:53]} Nf8 {[%emt 0:15:59]} 18. g5 {[%emt 0:01:18]} Ne6 {[%emt 0:03:59]} 19. gxf6+ {[%emt 0:09:00]} Kxf6 {[%emt 0:01:42]} 20. Rdg1 {[%emt 0:00:39]} Bd7 {[%emt 0:00:42]} 21. Ne2 {[%emt 0:04:32]} Rag8 {[%emt 0:03:03]} 22. Nh2 {[%emt 0:07:39]} Ke7 {[%emt 0:07:02]} 23. h5 {[%emt 0:03:55]} g5 {[%emt 0:04:30]} 24. Ng3 {[%emt 0:00:26]} Kd8 {[%emt 0:00:16]} 25. Nf5 {[%emt 0:05:05]} Nd4 {[%emt 0:06:54]} 26. Ng4 {[%emt 0:03:20]} Nxf5 {[%emt 0:04:38]} 27. exf5 {[%emt 0:00:07]} Bxf5 {[%emt 0:00:39]} 28. Nxh6 {[%emt 0:01:03]} Rxh6 {[%emt 0:03:40]} 29. Rxg5 {[%emt 0:00:09]} Bg6 {[%emt 0:05:31]} 30. Rhg1 {[%emt 0:00:10]} Qf7 {[%emt 0:01:06]} 31. Qxe5 {[%emt 0:02:33]} Rxh5 {[%emt 0:03:28]} 32. Rxh5 {[%emt 0:00:20]} Bxh5 {[%emt 0:00:13]} 33. Rxg8+ {[%emt 0:00:08]} Qxg8 {[%emt 0:00:07]} 34. Qb8+ {[%emt 0:00:03]} 1-0

[Event "FRA-chTW Top 12 2019"]
[Site "Vandoeuvre"]
[Date "2019.05.02"]
[Round "1.4"]
[White "Bauer, Alexandra"]
[Black "Moingt, Anne"]
[Result "0-1"]
[ECO "A47"]
[WhiteElo "1349"]
[BlackElo "2042"]
[Annotator "NA"]
[PlyCount "144"]
[EventDate "2019.05.02"]
[EventType "team-tourn"]
[EventCountry "FRA"]
[SourceTitle "playchess.com"]
[Source "ChessBase"]
[SourceQuality "1"]
[TimeControl "40/5400+30:1800+30"]

1. d4 {[%emt 0:00:00]} Nf6 {[%emt 0:00:00]} 2. Bf4 {[%emt 0:00:00]} e6 {[%emt 0:00:02]} 3. e3 {[%emt 0:00:17]} c5 {[%emt 0:01:00]} 4. c3 {[%emt 0:02:44]} b6 {[%emt 0:01:06]} 5. Nf3 {[%emt 0:01:00]} Bb7 {[%emt 0:00:19]} 6. Nbd2 {[%emt 0:01:10]} Be7 {[%emt 0:01:02]} 7. Bd3 {[%emt 0:01:56]} cxd4 {[%emt 0:03:10]} 8. cxd4 {[%emt 0:01:43]} O-O {[%emt 0:04:02]} 9. O-O {[%emt 0:02:20]} Nc6 {[%emt 0:05:10]} 10. a3 {[%emt 0:05:31]} d6 {[%emt 0:06:01]} 11. Qe2 {[%emt 0:16:23]} Nh5 {[%emt 0:06:08]} 12. Bg3 {[%emt 0:00:45]} Nxg3 {[%emt 0:00:06]} 13. hxg3 {[%emt 0:00:15]} a6 {[%emt 0:03:48]} 14. Rac1 {[%emt 0:02:58]} Qd7 {[%emt 0:01:33]} 15. Nc4 {[%emt 0:10:52]} Bd8 {[%emt 0:02:39]} 16. Qc2 {[%emt 0:04:54]} g6 {[%emt 0:00:35]} 17. b4 {[%emt 0:05:04]} Rc8 {[%emt 0:04:24]} 18. Qb1 {[%emt 0:04:45]} b5 {[%emt 0:02:32]} 19. Ncd2 {[%emt 0:00:35]} Bf6 {[%emt 0:01:39]} 20. Nb3 {[%emt 0:05:45]} Qd8 {[%emt 0:06:24]} 21. Rfd1 {[%emt 0:04:52]} Qb6 {[%emt 0:01:47]} 22. Be2 {[%emt 0:02:16]} Bg7 {[%emt 0:01:01]} 23. Rd2 {[%emt 0:05:16]} h6 {[%emt 0:08:12]} 24. Ne1 {[%emt 0:04:29]} e5 {[%emt 0:02:11]} 25. d5 {[%emt 0:05:54]} Ne7 {[%emt 0:00:11]} 26. Bf3 {[%emt 0:03:35]} f5 {[%emt 0:02:26]} 27. e4 {[%emt 0:00:29]} Bf6 {[%emt 0:08:35]} 28. Rcc2 {[%emt 0:04:21]} Kg7 {[%emt 0:04:51]} 29. Qd1 {[%emt 0:00:42]} Bg5 {[%emt 0:01:59]} 30. Rd3 {[%emt 0:00:50]} fxe4 {[%emt 0:04:34]} 31. Bxe4 {[%emt 0:00:04]} Rc4 {[%emt 0:00:07]} 32. Bf3 {[%emt 0:00:23]} e4 {[%emt 0:00:24]} 33. Bxe4 {[%emt 0:01:20]} Rxe4 {[%emt 0:00:05]} 34. Nf3 {[%emt 0:00:25]} Nf5 {[%emt 0:02:08]} 35. Nbd2 {[%emt 0:02:55]} Re7 {[%emt 0:00:31]} 36. Kf1 {[%emt 0:00:36]} Bf6 {[%emt 0:02:06]} 37. Qc1 {[%emt 0:00:25]} Nd4 {[%emt 0:00:35]} 38. Nxd4 {[%emt 0:00:21]} Bxd4 {[%emt 0:00:02]} 39. Nf3 {[%emt 0:00:09]} Bf6 {[%emt 0:00:28]} 40. Qd2 {[%emt 0:00:36]} Rfe8 {[%emt 0:00:48]} 41. Qd1 {[%emt 0:30:47]} Bc8 {[%emt 0:32:52]} 42. Rc6 {[%emt 0:00:44]} Qd8 {[%emt 0:00:00]} 43. Rd2 {[%emt 0:00:27]} Bg4 {[%emt 0:01:27]} 44. Rc1 {[%emt 0:00:29]} Bxf3 {[%emt 0:00:23]} 45. gxf3 {[%emt 0:00:11]} a5 {[%emt 0:01:36]} 46. Qc2 {[%emt 0:00:34]} axb4 {[%emt 0:00:36]} 47. axb4 {[%emt 0:00:02]} Qd7 {[%emt 0:00:12]} 48. Kg2 {[%emt 0:00:31]} Bg5 {[%emt 0:02:59]} 49. f4 {[%emt 0:00:41]} Bf6 {[%emt 0:00:03]} 50. Qc6 {[%emt 0:00:27]} Qf5 {[%emt 0:00:37]} 51. Qxd6 {[%emt 0:00:59]} Qe4+ {[%emt 0:00:04]} 52. Kh2 {[%emt 0:00:31]} Rf7 {[%emt 0:01:50]} 53. Qc5 {[%emt 0:00:38]} g5 {[%emt 0:01:21]} 54. Qxb5 {[%emt 0:00:33]} gxf4 {[%emt 0:00:06]} 55. Rcc2 {[%emt 0:00:25]} fxg3+ {[%emt 0:00:41]} 56. fxg3 {[%emt 0:00:11]} Rd8 {[%emt 0:00:43]} 57. d6 {[%emt 0:00:48]} Bg5 {[%emt 0:01:00]} 58. Re2 {[%emt 0:00:26]} Qd4 {[%emt 0:00:21]} 59. Qa5 {[%emt 0:00:40]} Rxd6 {[%emt 0:00:50]} 60. Qe5+ {[%emt 0:00:10]} Bf6 {[%emt 0:01:17]} 61. Qxd4 {[%emt 0:00:06]} Rxd4 {[%emt 0:00:06]} 62. Rb2 {[%emt 0:01:12]} Rb7 {[%emt 0:00:56]} 63. b5 {[%emt 0:00:21]} Rd5 {[%emt 0:01:09]} 64. Rb1 {[%emt 0:00:11]} Rdxb5 {[%emt 0:00:12]} 65. Rxb5 {[%emt 0:00:06]} Rxb5 {[%emt 0:00:05]} 66. Kg2 {[%emt 0:00:44]} Rb3 {[%emt 0:00:05]} 67. Rf2 {[%emt 0:01:08]} Kg6 {[%emt 0:00:35]} 68. Rf3 {[%emt 0:00:27]} Rb5 {[%emt 0:00:33]} 69. Rd3 {[%emt 0:00:29]} Kg5 {[%emt 0:00:24]} 70. Kf3 {[%emt 0:00:33]} Be5 {[%emt 0:02:53]} 71. Kf2 {[%emt 0:00:32]} Kg4 {[%emt 0:00:27]} 72. Re3 {[%emt 0:00:24]} Bd4 {[%emt 0:00:06]} 0-1

[Event "FRA-chTW Top 12 2019"]
[Site "Vandoeuvre"]
[Date "2019.05.02"]
[Round "1.5"]
[White "Cramling, Pia"]
[Black "Atalik, Ekaterina"]
[Result "1/2-1/2"]
[ECO "A16"]
[WhiteElo "2454"]
[BlackElo "2458"]
[Annotator "ChessBase"]
[PlyCount "32"]
[EventDate "2019.05.02"]
[EventType "team-tourn"]
[EventCountry "FRA"]
[SourceTitle "playchess.com"]
[Source "ChessBase"]
[SourceQuality "1"]
[TimeControl "40/5400+30:1800+30"]

1. Nf3 {[%emt 0:00:00]} Nf6 {[%emt 0:00:00]} 2. c4 {[%emt 0:00:00]} g6 {[%emt 0:00:00]} 3. Nc3 {[%emt 0:00:38]} d5 {[%emt 0:00:26]} 4. cxd5 {[%emt 0:00:55]} Nxd5 {[%emt 0:00:06]} 5. e4 {[%emt 0:04:53]} Nxc3 {[%emt 0:01:01]} 6. dxc3 {[%emt 0:00:04]} Qxd1+ {[%emt 0:00:51]} 7. Kxd1 {[%emt 0:00:04]} f6 {[%emt 0:01:13]} 8. Be3 {[%emt 0:01:16]} e5 {[%emt 0:01:23]} 9. Bc4 {[%emt 0:00:41]} Nd7 {[%emt 0:02:12]} 10. Kc2 {[%emt 0:09:42]} Bc5 {[%emt 0:01:46]} 11. Rhe1 {[%emt 0:01:56]} Bxe3 {[%emt 0:01:22]} 12. Rxe3 {[%emt 0:00:05]} Ke7 {[%emt 0:01:36]} 13. Nd2 {[%emt 0:04:24]} Nb6 {[%emt 0:03:25]} 14. Bb3 {[%emt 0:01:50]} Bd7 {[%emt 0:03:11]} 15. Nc4 {[%emt 0:08:05]} Nxc4 {[%emt 0:02:14]} 16. Bxc4 {[%emt 0:00:06]} Rad8 {[%emt 0:00:52]} 1/2-1/2

[Event "FRA-chTW Top 12 2019"]
[Site "Vandoeuvre"]
[Date "2019.05.02"]
[Round "1.5"]
[White "Collas, Silvia"]
[Black "Savina, Anastasia"]
[Result "1/2-1/2"]
[ECO "D00"]
[WhiteElo "2279"]
[BlackElo "2353"]
[Annotator "NA"]
[PlyCount "82"]
[EventDate "2019.05.02"]
[EventType "team-tourn"]
[EventCountry "FRA"]
[SourceTitle "playchess.com"]
[Source "ChessBase"]
[SourceQuality "1"]
[TimeControl "40/5400+30:1800+30"]

1. d4 {[%emt 0:00:00]} Nf6 {[%emt 0:00:00]} 2. Nf3 {[%emt 0:00:25]} g6 {[%emt 0:01:24]} 3. Nc3 {[%emt 0:00:26]} d5 {[%emt 0:01:56]} 4. Bf4 {[%emt 0:00:10]} c6 {[%emt 0:09:24]} 5. e3 {[%emt 0:00:39]} Bg7 {[%emt 0:01:43]} 6. Be2 {[%emt 0:01:24]} Nbd7 {[%emt 0:03:33]} 7. Ne5 {[%emt 0:04:00]} O-O {[%emt 0:14:25]} 8. h4 {[%emt 0:01:32]} Nxe5 {[%emt 0:11:28]} 9. Bxe5 {[%emt 0:00:36]} b5 {[%emt 0:02:19]} 10. h5 {[%emt 0:03:44]} Qa5 {[%emt 0:08:18]} 11. hxg6 {[%emt 0:05:01]} fxg6 {[%emt 0:05:06]} 12. Bf3 {[%emt 0:02:18]} Bf5 {[%emt 0:06:46]} 13. Kf1 {[%emt 0:03:40]} b4 {[%emt 0:10:13]} 14. Ne2 {[%emt 0:01:30]} Qa6 {[%emt 0:01:06]} 15. Kg1 {[%emt 0:05:51]} g5 {[%emt 0:02:44]} 16. Ng3 {[%emt 0:02:31]} Bg6 {[%emt 0:04:15]} 17. b3 {[%emt 0:03:48]} Rad8 {[%emt 0:04:28]} 18. a3 {[%emt 0:04:02]} bxa3 {[%emt 0:02:19]} 19. Qc1 {[%emt 0:00:37]} a2 {[%emt 0:01:07]} 20. Qb2 {[%emt 0:01:32]} g4 {[%emt 0:01:58]} 21. Rxa2 {[%emt 0:07:54]} Qc8 {[%emt 0:01:55]} 22. Be2 {[%emt 0:04:33]} Ne4 {[%emt 0:01:17]} 23. Nxe4 {[%emt 0:06:18]} Bxe5 {[%emt 0:00:28]} 24. dxe5 {[%emt 0:06:51]} dxe4 {[%emt 0:01:04]} 25. Qc3 {[%emt 0:06:19]} Qf5 {[%emt 0:00:40]} 26. Qe1 {[%emt 0:00:05]} Rd7 {[%emt 0:02:31]} 27. e6 {[%emt 0:02:21]} Rd2 {[%emt 0:00:30]} 28. Rh4 {[%emt 0:01:04]} h5 {[%emt 0:00:20]} 29. Bxg4 {[%emt 0:02:33]} Qxf2+ {[%emt 0:00:38]} 30. Qxf2 {[%emt 0:00:04]} Rfxf2 {[%emt 0:00:16]} 31. Bh3 {[%emt 0:00:05]} Rxc2 {[%emt 0:00:45]} 32. Rxa7 {[%emt 0:00:10]} Bf5 {[%emt 0:00:27]} 33. Rxh5 {[%emt 0:06:36]} Bxh3 {[%emt 0:00:02]} 34. Rg5+ {[%emt 0:00:06]} Kh7 {[%emt 0:00:58]} 35. gxh3 {[%emt 0:00:41]} Rfe2 {[%emt 0:00:28]} 36. Rxe7+ {[%emt 0:04:45]} Kh6 {[%emt 0:00:10]} 37. Rf5 {[%emt 0:00:21]} Rg2+ {[%emt 0:00:46]} 38. Kf1 {[%emt 0:01:15]} Rh2 {[%emt 0:00:30]} 39. Kg1 {[%emt 0:00:47]} Rhg2+ {[%emt 0:00:31]} 40. Kf1 {[%emt 0:00:52]} Rh2 {[%emt 0:00:08]} 41. Kg1 {[%emt 0:30:36]} Rhg2+ {[%emt 0:30:11]} 1/2-1/2

[Event "FRA-chTW Top 12 2019"]
[Site "Vandoeuvre"]
[Date "2019.05.02"]
[Round "1.6"]
[White "Thomas, Anysia"]
[Black "Belluire, Beatrice"]
[Result "1-0"]
[ECO "A58"]
[WhiteElo "2178"]
[BlackElo "1913"]
[Annotator "NA"]
[PlyCount "89"]
[EventDate "2019.05.02"]
[EventType "team-tourn"]
[EventCountry "FRA"]
[SourceTitle "playchess.com"]
[Source "ChessBase"]
[SourceQuality "1"]
[TimeControl "40/5400+30:1800+30"]

1. d4 {[%emt 0:00:00]} Nf6 {[%emt 0:00:00]} 2. c4 {[%emt 0:00:00]} c5 {[%emt 0:00:00]} 3. d5 {[%emt 0:00:00]} b5 {[%emt 0:00:00]} 4. cxb5 {[%emt 0:00:00]} a6 {[%emt 0:00:00]} 5. bxa6 {[%emt 0:00:00]} g6 {[%emt 0:00:00]} 6. Nc3 {[%emt 0:00:07]} Bg7 {[%emt 0:00:00]} 7. e4 {[%emt 0:00:19]} O-O {[%emt 0:00:00]} 8. e5 {[%emt 0:02:05]} Ne8 {[%emt 0:00:00]} 9. h4 {[%emt 0:00:07]} Bxe5 {[%emt 0:08:20]} 10. Bh6 {[%emt 0:01:36]} Bg7 {[%emt 0:01:27]} 11. Qd2 {[%emt 0:05:57]} Bxa6 {[%emt 0:02:43]} 12. h5 {[%emt 0:07:38]} Qb6 {[%emt 0:18:51]} 13. hxg6 {[%emt 0:13:30]} Qxg6 {[%emt 0:00:24]} 14. Nf3 {[%emt 0:08:49]} Bxf1 {[%emt 0:01:34]} 15. Kxf1 {[%emt 0:00:23]} Ra6 {[%emt 0:04:35]} 16. Bxg7 {[%emt 0:08:34]} Qxg7 {[%emt 0:00:15]} 17. Rh3 {[%emt 0:04:10]} f5 {[%emt 0:10:49]} 18. Qf4 {[%emt 0:07:40]} Nf6 {[%emt 0:06:56]} 19. Nh4 {[%emt 0:22:56]} Nh5 {[%emt 0:05:46]} 20. Qf3 {[%emt 0:02:48]} Qg5 {[%emt 0:00:45]} 21. Re1 {[%emt 0:02:29]} Rb6 {[%emt 0:07:42]} 22. Qe3 {[%emt 0:06:57]} f4 {[%emt 0:21:41]} 23. Qd2 {[%emt 0:02:23]} Qg4 {[%emt 0:01:55]} 24. Qe2 {[%emt 0:02:25]} f3 {[%emt 0:01:16]} 25. Nxf3 {[%emt 0:01:01]} Rg6 {[%emt 0:00:11]} 26. Rh2 {[%emt 0:00:31]} Nf4 {[%emt 0:04:49]} 27. Qxe7 {[%emt 0:00:20]} Rg7 {[%emt 0:00:41]} 28. Qh4 {[%emt 0:00:30]} Qxh4 {[%emt 0:00:53]} 29. Nxh4 {[%emt 0:00:24]} Nd3 {[%emt 0:00:01]} 30. Re2 {[%emt 0:00:17]} Nf4 {[%emt 0:02:17]} 31. Re3 {[%emt 0:00:22]} Rg5 {[%emt 0:00:15]} 32. Nf3 {[%emt 0:00:42]} Rgf5 {[%emt 0:00:22]} 33. g3 {[%emt 0:00:48]} Nxd5 {[%emt 0:00:21]} 34. Nxd5 {[%emt 0:00:05]} Rxd5 {[%emt 0:00:37]} 35. Ke2 {[%emt 0:00:31]} Nc6 {[%emt 0:00:12]} 36. Rh4 {[%emt 0:00:42]} Rdf5 {[%emt 0:00:33]} 37. Rg4+ {[%emt 0:00:43]} Kh8 {[%emt 0:00:39]} 38. a3 {[%emt 0:00:32]} d5 {[%emt 0:00:36]} 39. Rf4 {[%emt 0:00:29]} Rxf4 {[%emt 0:00:26]} 40. gxf4 {[%emt 0:00:04]} Rxf4 {[%emt 0:00:28]} 41. Re8+ {[%emt 0:30:25]} Kg7 {[%emt 0:30:01]} 42. Rc8 {[%emt 0:00:21]} Rf6 {[%emt 0:00:27]} 43. Rc7+ {[%emt 0:00:13]} Kg6 {[%emt 0:00:46]} 44. Rxc6 {[%emt 0:00:08]} Rxc6 {[%emt 0:00:25]} 45. Ne5+ {[%emt 0:00:03]} 1-0

[Event "FRA-chTW Top 12 2019"]
[Site "Vandoeuvre"]
[Date "2019.05.02"]
[Round "1.6"]
[White "Bismuth, Lea"]
[Black "Cornette, Deimante"]
[Result "0-1"]
[ECO "B13"]
[WhiteElo "1956"]
[BlackElo "2433"]
[Annotator "NA"]
[PlyCount "76"]
[EventDate "2019.05.02"]
[EventType "team-tourn"]
[EventCountry "FRA"]
[SourceTitle "playchess.com"]
[Source "ChessBase"]
[SourceQuality "1"]
[TimeControl "40/5400+30:1800+30"]

1. d4 {[%emt 0:00:00]} Nf6 {[%emt 0:00:00]} 2. Bf4 {[%emt 0:00:00]} d5 {[%emt 0:02:34]} 3. Nc3 {[%emt 0:01:31]} c5 {[%emt 0:02:57]} 4. e3 {[%emt 0:00:09]} cxd4 {[%emt 0:00:24]} 5. exd4 {[%emt 0:00:13]} a6 {[%emt 0:00:07]} 6. Nf3 {[%emt 0:01:12]} Nc6 {[%emt 0:00:28]} 7. Ne5 {[%emt 0:01:25]} Bf5 {[%emt 0:07:52]} 8. g4 {[%emt 0:10:35]} Nxe5 {[%emt 0:08:10]} 9. dxe5 {[%emt 0:15:58]} Bxg4 {[%emt 0:10:27]} 10. f3 {[%emt 0:07:40]} Nh5 {[%emt 0:00:16]} 11. Be3 {[%emt 0:00:48]} Be6 {[%emt 0:02:00]} 12. f4 {[%emt 0:01:45]} d4 {[%emt 0:04:23]} 13. Qxh5 {[%emt 0:28:31]} dxc3 {[%emt 0:15:52]} 14. b3 {[%emt 0:13:08]} Bd5 {[%emt 0:03:25]} 15. Rg1 {[%emt 0:00:21]} g6 {[%emt 0:00:43]} 16. Qh3 {[%emt 0:03:16]} Qc8 {[%emt 0:03:45]} 17. Qg3 {[%emt 0:00:57]} e6 {[%emt 0:02:06]} 18. Bd3 {[%emt 0:05:53]} Ba3 {[%emt 0:04:59]} 19. Rd1 {[%emt 0:00:29]} Qc6 {[%emt 0:01:10]} 20. Kf2 {[%emt 0:02:51]} O-O-O {[%emt 0:02:09]} 21. Rge1 {[%emt 0:02:40]} Kb8 {[%emt 0:02:13]} 22. Bf1 {[%emt 0:00:44]} Be4 {[%emt 0:06:27]} 23. Qg5 {[%emt 0:00:34]} Rde8 {[%emt 0:00:35]} 24. Bd3 {[%emt 0:00:29]} Bd5 {[%emt 0:00:40]} 25. Qg3 {[%emt 0:00:34]} h5 {[%emt 0:00:51]} 26. h4 {[%emt 0:00:18]} Be7 {[%emt 0:00:19]} 27. a4 {[%emt 0:00:45]} Rc8 {[%emt 0:01:29]} 28. Kg1 {[%emt 0:00:31]} Rhd8 {[%emt 0:00:42]} 29. Kh2 {[%emt 0:00:09]} Bf3 {[%emt 0:01:39]} 30. Ra1 {[%emt 0:00:44]} Rxd3 {[%emt 0:03:11]} 31. cxd3 {[%emt 0:00:03]} Bd5 {[%emt 0:00:17]} 32. Qf2 {[%emt 0:01:15]} Bxb3 {[%emt 0:02:08]} 33. Reb1 {[%emt 0:00:17]} Qd5 {[%emt 0:02:48]} 34. a5 {[%emt 0:00:42]} c2 {[%emt 0:00:42]} 35. Rb2 {[%emt 0:00:26]} Qxd3 {[%emt 0:00:54]} 36. Qe1 {[%emt 0:00:25]} Rc3 {[%emt 0:00:37]} 37. Bf2 {[%emt 0:00:28]} Qh3+ {[%emt 0:00:37]} 38. Kg1 {[%emt 0:00:01]} Bd5 {[%emt 0:00:17]} 0-1